bitfinex/quotes_ETHUSD_20230102
["timestamp","ask_amount","ask_price","bid_price","bid_amount"]
[1672627944817,0.57412126,1198.4,1198.3,61.34199528]
[1672627946522,3.08049896,1198.4,1198.3,61.34199528]
[1672627953642,3.08049896,1198.4,1198.3,32.04353352]
[1672627953850,2.7864007,1198.4,1198.3,21.46674445]
[1672627954238,2.7864007,1198.4,1198.3,13.12159445]
[1672627955720,0.57412126,1198.4,1198.3,13.12159445]
[1672627955916,3.70424159,1198.4,1198.3,13.12159445]
[1672627957265,0.57412126,1198.4,1198.3,13.12159445]
[1672627958030,3.70428384,1198.4,1198.3,13.12159445]
[1672627958281,0.57412126,1198.4,1198.3,13.12159445]
[1672627958456,3.70461684,1198.4,1198.3,13.12159445]
[1672627958959,3.70461684,1198.4,1198.3,21.46674445]
[1672627959487,3.70461684,1198.4,1198.3,13.12159445]
[1672627960330,3.70661684,1198.4,1198.3,13.11959445]
[1672627960699,4.32380385,1198.4,1198.3,13.12159445]
[1672627960912,0.57412126,1198.4,1198.3,13.12159445]
[1672627961084,3.70475056,1198.4,1198.3,13.12159445]
[1672627962552,3.70455798,1198.4,1198.3,13.12159445]
[1672627962802,0.57412126,1198.4,1198.3,13.12159445]
[1672627963008,3.70455619,1198.4,1198.3,13.12159445]
[1672627965806,0.57412126,1198.4,1198.3,13.12159445]
[1672627966431,3.70413772,1198.4,1198.3,13.12159445]
[1672627966641,0.57412126,1198.4,1198.3,13.12159445]
[1672627966849,3.70414681,1198.4,1198.3,13.12159445]
[1672627967293,0.57412126,1198.4,1198.3,13.12159445]
[1672627967858,3.70413643,1198.4,1198.3,13.12159445]
[1672627968324,0.57412126,1198.4,1198.3,13.12159445]
[1672627968529,4.32380385,1198.4,1198.3,13.12159445]
[1672627969267,0.57412126,1198.4,1198.3,13.12159445]
[1672627969479,3.70387878,1198.4,1198.3,13.12159445]
[1672627969797,3.70387905,1198.4,1198.3,13.12159445]
[1672627970674,0.57412126,1198.4,1198.3,13.12159445]
[1672627971314,4.32380385,1198.4,1198.3,13.12159445]
[1672627972111,0.57412126,1198.4,1198.3,13.12159445]
[1672627972335,6.20672637,1198.4,1198.3,13.12159445]
[1672627972550,6.21031592,1198.4,1198.3,15.54193268]
[1672627974058,3.70698282,1198.4,1198.3,15.54193268]
[1672627974270,3.70334632,1198.4,1198.3,15.54193268]
[1672627975893,3.70334632,1198.4,1198.3,15.5383753]
[1672627979591,6.20675081,1198.4,1198.3,15.5383753]
[1672627979997,6.21038731,1198.4,1198.3,15.5383753]
[1672627982108,3.70698282,1198.4,1198.3,15.5383753]
[1672627982320,3.70334632,1198.4,1198.3,15.5383753]
[1672627983264,3.07781785,1198.4,1198.3,15.5383753]
[1672627983477,6.20704291,1198.4,1198.3,15.5383753]
[1672627983688,6.21067941,1198.4,1198.3,15.5383753]
[1672627984634,6.21067941,1198.4,1198.3,23.8835253]
[1672627984862,6.21067941,1198.4,1198.3,25.13788434]
[1672627986380,3.70698282,1198.4,1198.3,25.13788434]
[1672627986559,3.70334632,1198.4,1198.3,25.13788434]
[1672627988220,6.20804653,1198.4,1198.3,25.13788434]
[1672627988579,6.21168303,1198.4,1198.3,25.13788434]
[1672627990360,3.70698282,1198.4,1198.3,16.79273434]
[1672627990589,3.70334632,1198.4,1198.3,14.37239611]
[1672627991520,6.2083524,1198.4,1198.3,14.37239611]
[1672627991735,6.2119889,1198.4,1198.3,14.37239611]
[1672627995888,6.1119889,1198.4,1198.3,14.37239611]
[1672628011185,3.60698282,1198.4,1198.3,14.37239611]
[1672628011362,3.60334632,1198.4,1198.3,19.01717268]
[1672628016775,3.59953057,1198.4,1198.3,19.01717268]
[1672628024240,3.59953057,1198.4,1198.3,22.84033444]
[1672628024451,6.10531156,1198.4,1198.3,27.36232268]
[1672628024662,6.10894806,1198.4,1198.3,27.36232268]
[1672628025243,3.60316707,1198.4,1198.3,27.36232268]
[1672628025515,6.10527968,1198.4,1198.3,27.36232268]
[1672628025715,3.60316707,1198.4,1198.3,27.36232268]
[1672628025926,0.47030551,1198.4,1198.3,19.01717268]
[1672628026188,4.2199881,1198.4,1198.3,19.01717268]
[1672628026554,4.2199881,1198.4,1198.3,14.37239611]
[1672628027524,4.2199881,1198.4,1198.3,14.12001229]
[1672628027913,4.2199881,1198.4,1198.3,14.37239611]
[1672628031727,0.47030551,1198.4,1198.3,14.37239611]
[1672628032808,3.60140914,1198.4,1198.3,14.37239611]
[1672628033128,3.60140914,1198.4,1198.3,16.85391172]
[1672628038283,3.60140914,1198.4,1198.3,16.85072903]
[1672628042570,0.47030551,1198.4,1198.3,16.85072903]
[1672628044940,3.60177445,1198.4,1198.3,16.85072903]
[1672628046763,0.47030551,1198.4,1198.3,16.85072903]
[1672628047309,3.60188494,1198.4,1198.3,16.85072903]
[1672628047671,0.47030551,1198.4,1198.3,16.85072903]
[1672628048652,3.60193945,1198.4,1198.3,16.85072903]
[1672628050838,3.55193945,1198.4,1198.3,16.85072903]
[1672628058606,0.42030551,1198.4,1198.3,16.85072903]
[1672628059025,3.55205558,1198.4,1198.3,16.85072903]
[1672628075760,3.55205558,1198.4,1198.3,16.84747571]
[1672628076297,6.05773623,1198.4,1198.3,16.84747571]
[1672628076508,3.55569208,1198.4,1198.3,16.84747571]
[1672628076827,3.55205558,1198.4,1198.3,16.84747571]
[1672628078486,6.05769704,1198.4,1198.3,16.84747571]
[1672628078640,6.06133354,1198.4,1198.3,16.84747571]
[1672628079223,3.55569208,1198.4,1198.3,16.84747571]
[1672628079397,3.55205558,1198.4,1198.3,16.84747571]
[1672628081685,6.05770345,1198.4,1198.3,25.19262571]
[1672628081895,6.06133995,1198.4,1198.3,25.19262571]
[1672628082106,3.55569208,1198.4,1198.3,25.19262571]
[1672628082336,6.05769922,1198.4,1198.3,25.19262571]
[1672628082585,6.06133572,1198.4,1198.3,25.19262571]
[1672628082805,6.06127954,1198.4,1198.3,25.19262571]
[1672628083168,3.55569208,1198.4,1198.3,25.19262571]
[1672628083372,6.05764426,1198.4,1198.3,25.19262571]
[1672628083583,3.55569208,1198.4,1198.3,25.19262571]
[1672628083817,6.05764474,1198.4,1198.3,25.19262571]
[1672628084157,3.55569208,1198.4,1198.3,25.19262571]
[1672628084331,3.55205558,1198.4,1198.3,25.19262571]
[1672628085645,6.05777619,1198.4,1198.3,25.19262571]
[1672628085947,3.55569208,1198.4,1198.3,25.19262571]
[1672628086167,3.55205558,1198.4,1198.3,25.19262571]
[1672628086687,6.05779221,1198.4,1198.3,25.19262571]
[1672628086881,6.06142871,1198.4,1198.3,25.19262571]
[1672628087204,6.06144072,1198.4,1198.3,25.19262571]
[1672628087370,6.06143424,1198.4,1198.3,25.19262571]
[1672628087578,3.55569208,1198.4,1198.3,25.19262571]
[1672628087789,3.55205558,1198.4,1198.3,25.19262571]
[1672628092193,3.55205558,1198.4,1198.3,16.84747571]
[1672628093034,6.05792345,1198.4,1198.3,16.84747571]
[1672628093283,3.55569208,1198.4,1198.3,16.84747571]
[1672628093532,3.55205558,1198.4,1198.3,16.84747571]
[1672628093881,6.05794379,1198.4,1198.3,16.84747571]
[1672628094143,6.06156198,1198.4,1198.3,16.84747571]
[1672628094611,3.55569208,1198.4,1198.3,16.84747571]
[1672628094820,3.55205558,1198.4,1198.3,16.84747571]
[1672628096191,6.05784261,1198.4,1198.3,16.8447758]
[1672628096402,3.55569208,1198.4,1198.3,16.8447758]
[1672628096611,3.55205558,1198.4,1198.3,16.8447758]
[1672628097234,6.05783838,1198.4,1198.3,16.8447758]
[1672628097444,3.55569208,1198.4,1198.3,16.8447758]
[1672628097710,3.55205558,1198.4,1198.3,16.8447758]
[1672628097893,6.0578379,1198.4,1198.3,16.8447758]
[1672628098087,6.0614744,1198.4,1198.3,16.8447758]
[1672628098509,3.55569208,1198.4,1198.3,16.8447758]
[1672628098764,3.55205558,1198.4,1198.3,16.8447758]
[1672628099072,6.05782166,1198.4,1198.3,16.8447758]
[1672628099289,6.06146486,1198.4,1198.3,16.8447758]
[1672628099439,6.06146486,1198.4,1198.3,25.1899258]
[1672628100279,6.06146486,1198.4,1198.3,41.8802258]
[1672628100656,6.06146486,1198.4,1198.3,33.5350758]
[1672628100845,6.06146486,1198.4,1198.3,25.1899258]
[1672628105625,6.06146486,1198.4,1198.3,16.8447758]
[1672628106268,3.55569208,1198.4,1198.3,16.8447758]
[1672628106480,6.05823246,1198.4,1198.3,16.8447758]
[1672628106698,3.55569208,1198.4,1198.3,16.8447758]
[1672628106846,3.55205558,1198.4,1198.3,16.8447758]
[1672628107055,6.0582396,1198.4,1198.3,16.8447758]
[1672628107369,6.0618761,1198.4,1198.3,16.8447758]
[1672628107580,3.55569208,1198.4,1198.3,16.8447758]
[1672628107790,3.55205558,1198.4,1198.3,16.8447758]
[1672628107999,6.05823459,1198.4,1198.3,16.8447758]
[1672628108205,3.55569208,1198.4,1198.3,16.8447758]
[1672628108421,3.55205558,1198.4,1198.3,16.8447758]
[1672628112103,6.05840299,1198.4,1198.3,16.8447758]
[1672628112369,3.55569208,1198.4,1198.3,16.8447758]
[1672628112522,3.55205558,1198.4,1198.3,16.8447758]
[1672628112992,6.05840059,1198.4,1198.3,16.8447758]
[1672628113315,3.55569208,1198.4,1198.3,16.8447758]
[1672628113544,3.55205558,1198.4,1198.3,16.8447758]
[1672628114344,6.05837696,1198.4,1198.3,16.8447758]
[1672628114554,6.06201346,1198.4,1198.3,16.8447758]
[1672628115205,3.55569208,1198.4,1198.3,16.8447758]
[1672628115396,3.55205558,1198.4,1198.3,16.8447758]
[1672628116073,0.42030551,1198.4,1198.3,9.34706722]
[1672628116293,4.1699881,1198.4,1198.3,9.34706722]
[1672628116860,4.1699881,1198.4,1198.3,9.34474319]
[1672628117817,4.1699881,1198.4,1198.3,9.09235937]
[1672628118056,4.1699881,1198.4,1198.3,9.34474319]
[1672628122380,0.42030551,1198.4,1198.3,9.34474319]
[1672628123278,4.1699881,1198.4,1198.3,9.34474319]
[1672628126999,4.0699881,1198.4,1198.3,9.34474319]
[1672628128358,0.32030551,1198.4,1198.3,9.34474319]
[1672628134699,4.0699881,1198.4,1198.3,9.34474319]
[1672628137899,0.32030551,1198.4,1198.3,9.34474319]
[1672628138950,3.44972015,1198.4,1198.3,9.34474319]
[1672628144371,3.44972015,1198.4,1198.3,11.16253369]
[1672628144690,5.95357525,1198.4,1198.3,11.16253369]
[1672628144996,2.82779711,1198.4,1198.3,11.16253369]
[1672628145212,2.82416061,1198.4,1198.3,11.16253369]
[1672628145952,5.95357525,1198.4,1198.3,11.16253369]
[1672628146261,2.82779711,1198.4,1198.3,11.16253369]
[1672628146475,5.95357525,1198.4,1198.3,11.16253369]
[1672628146684,5.95721175,1198.4,1198.3,11.16253369]
[1672628147690,2.82779711,1198.4,1198.3,11.16253369]
[1672628147890,5.95357525,1198.4,1198.3,11.16253369]
[1672628148096,5.95721175,1198.4,1198.3,11.16253369]
[1672628148747,5.95721175,1198.4,1198.3,11.15915716]
[1672628149957,2.82779711,1198.4,1198.3,11.15915716]
[1672628150151,2.82416061,1198.4,1198.3,11.15915716]
[1672628150528,5.95357525,1198.4,1198.3,11.15915716]
[1672628150736,5.95721175,1198.4,1198.3,11.15915716]
[1672628151515,5.95721175,1198.4,1198.3,19.50430716]
[1672628152463,5.95721175,1198.4,1198.3,11.15915716]
[1672628153768,5.95721175,1198.4,1198.3,19.50430716]
[1672628155625,5.95721175,1198.4,1198.3,11.15915716]
[1672628156467,3.45335665,1198.4,1198.3,11.15915716]
[1672628156777,3.44972015,1198.4,1198.3,11.15915716]
[1672628164482,0.32030551,1198.4,1198.3,11.15915716]
[1672628168444,0.32030551,1198.4,1198.3,9.34136666]
[1672628172214,3.45080876,1198.4,1198.3,9.34136666]
[1672628172424,4.0699881,1198.4,1198.3,9.33793673]
[1672628175310,0.32030551,1198.4,1198.3,9.33793673]
[1672628176048,3.45095257,1198.4,1198.3,9.33793673]
[1672628176258,0.32030551,1198.4,1198.3,9.33793673]
[1672628177109,4.0699881,1198.4,1198.3,9.33793673]
[1672628177956,0.32030551,1198.4,1198.3,9.33793673]
[1672628178182,4.0699881,1198.4,1198.3,9.33793673]
[1672628179843,0.32030551,1198.4,1198.3,9.33793673]
[1672628180168,3.45103776,1198.4,1198.3,9.33793673]
[1672628180359,0.32030551,1198.4,1198.3,9.33793673]
[1672628181361,4.0699881,1198.4,1198.3,9.33793673]
[1672628182831,0.32030551,1198.4,1198.3,9.33793673]
[1672628183236,3.45098364,1198.4,1198.3,9.33793673]
[1672628183564,0.32030551,1198.4,1198.3,9.33793673]
[1672628184350,3.45095111,1198.4,1198.3,9.33793673]
[1672628186299,0.32030551,1198.4,1198.3,9.33793673]
[1672628187869,3.45118026,1198.4,1198.3,9.33793673]
[1672628188191,0.32030551,1198.4,1198.3,9.33793673]
[1672628188943,4.0699881,1198.4,1198.3,9.33793673]
[1672628193656,4.0699881,1198.4,1198.3,9.33511123]
[1672628194354,0.32030551,1198.4,1198.3,9.33511123]
[1672628194708,4.0699881,1198.4,1198.3,9.33511123]
[1672628201126,0.32030551,1198.4,1198.3,9.33511123]
[1672628201282,4.69993285,1198.4,1198.3,9.33511123]
[1672628201756,4.07959228,1198.4,1198.3,9.33511123]
[1672628202122,0.32030551,1198.4,1198.3,9.33511123]
[1672628202332,4.07949847,1198.4,1198.3,9.33511123]
[1672628203622,0.32030551,1198.4,1198.3,9.33511123]
[1672628203817,4.07913874,1198.4,1198.3,9.33511123]
[1672628204225,0.32030551,1198.4,1198.3,9.33511123]
[1672628204858,4.07913702,1198.4,1198.3,9.33511123]
[1672628205125,0.32030551,1198.4,1198.3,9.33511123]
[1672628205293,4.69993285,1198.4,1198.3,9.33511123]
[1672628205506,0.32030551,1198.4,1198.3,9.33511123]
[1672628207326,4.07861493,1198.4,1198.3,9.33511123]
[1672628207853,4.07861493,1198.4,1198.3,9.08272741]
[1672628208004,4.07861493,1198.4,1198.3,9.33511123]
[1672628214116,4.07861493,1198.4,1198.3,9.33181585]
[1672628217298,4.07861493,1198.4,1198.3,8.92069254]
[1672628223083,4.07861493,1198.4,1198.3,9.33007456]
[1672628224374,4.07861493,1198.4,1198.3,9.28007456]
[1672628228419,4.07507902,1198.4,1198.3,9.28007456]
[1672628228879,5.54843123,1198.4,1198.3,8.87069254]
[1672628229243,5.55206773,1198.4,1198.3,8.64069254]
[1672628231146,8.55206773,1198.4,1198.3,8.64069254]
[1672628231526,16.44796581,1198.4,1198.3,4.57274286]
[1672628231856,19.15696581,1198.4,1198.3,4.50674286]
[1672628232312,19.15696581,1198.4,1198.3,1.50674286]
[1672628239362,18.35552364,1198.4,1198.3,1.50674286]
[1672628239577,19.15696581,1198.4,1198.3,1.50674286]
[1672628241672,13.97744039,1198.4,1198.3,1.50674286]
[1672628244300,8.97744039,1198.4,1198.3,1.50674286]
[1672628244736,5.97744039,1198.4,1198.3,1.50674286]
[1672628244907,5.35044039,1198.4,1198.3,1.50674286]
[1672628245122,10.35044039,1198.4,1198.3,1.50674286]
[1672628245962,14.72670075,1198.4,1198.3,1.50674286]
[1672628246613,10.35044039,1198.4,1198.3,1.50674286]
[1672628246822,14.72670402,1198.4,1198.3,1.50674286]
[1672628248085,12.63070402,1198.4,1198.3,1.50674286]
[1672628251274,7.63070402,1198.4,1198.3,1.50674286]
[1672628252132,12.63070402,1198.4,1198.3,1.50674286]
[1672628252349,12.63070402,1198.4,1198.3,1.50395343]
[1672628252674,8.25444039,1198.4,1198.3,1.50395343]
[1672628256643,13.43396581,1198.4,1198.3,1.91670481]
[1672628258140,8.43396581,1198.4,1198.3,1.91670481]
[1672628258910,7.63188841,1198.4,1198.3,1.91670481]
[1672628259080,7.63188841,1198.4,1198.3,1.50395343]
[1672628259286,12.63188841,1198.4,1198.3,1.50395343]
[1672628259511,8.25444039,1198.4,1198.3,1.50395343]
[1672628259923,12.63250619,1198.4,1198.3,1.50395343]
[1672628260689,8.25444039,1198.4,1198.3,1.50395343]
[1672628261726,13.43396581,1198.4,1198.3,1.50395343]
[1672628263705,8.25444039,1198.4,1198.3,1.50395343]
[1672628264257,13.43396581,1198.4,1198.3,1.50395343]
[1672628265787,8.25444039,1198.4,1198.3,1.50395343]
[1672628265997,13.43396581,1198.4,1198.3,1.50395343]
[1672628266784,8.43396581,1198.4,1198.3,1.50395343]
[1672628267842,13.43396581,1198.4,1198.3,1.50395343]
[1672628269151,13.43396581,1198.4,1198.3,1.91314575]
[1672628273770,8.43396581,1198.4,1198.3,1.91314575]
[1672628274874,13.43396581,1198.4,1198.3,1.91314575]
[1672628275465,11.35196581,1198.4,1198.3,1.91314575]
[1672628276034,11.35196581,1198.4,1198.3,1.91017281]
[1672628280928,6.35196581,1198.4,1198.3,1.91017281]
[1672628281688,11.35196581,1198.4,1198.3,1.91017281]
[1672628283977,6.17244039,1198.4,1198.3,1.91017281]
[1672628285696,11.35434026,1198.4,1198.3,1.50098049]
[1672628285912,6.17244039,1198.4,1198.3,1.50098049]
[1672628286146,6.17244039,1198.4,1198.3,0.25238382]
[1672628286978,6.17244039,1198.4,1198.3,1.44707924]
[1672628287782,1.17244039,1198.4,1198.3,1.44707924]
[1672628288147,1.16880389,1198.4,1198.3,1.44707924]
[1672628288720,6.16880389,1198.4,1198.3,1.44707924]
[1672628288980,6.17244039,1198.4,1198.3,1.44707924]
[1672628293899,6.17244039,1198.4,1198.3,2.61889217]
[1672628294112,6.17244039,1198.4,1198.3,5.61889217]
[1672628294330,6.17244039,1198.4,1198.3,5.68489217]
[1672628294976,12.39348111,1198.4,1198.3,5.68489217]
[1672628295510,7.39348111,1198.4,1198.3,5.68489217]
[1672628295658,12.39348111,1198.4,1198.3,5.68489217]
[1672628298213,12.39348111,1198.4,1198.3,5.43250835]
[1672628298599,6.17244039,1198.4,1198.3,5.68489217]
[1672628300822,6.17244039,1198.4,1198.3,5.68257386]
[1672628301442,12.39348111,1198.4,1198.3,5.68257386]
[1672628301653,7.39348111,1198.4,1198.3,5.68257386]
[1672628302009,7.39348111,1198.4,1198.3,4.49019675]
[1672628302357,7.39348111,1198.4,1198.3,4.42419675]
[1672628302697,12.39348111,1198.4,1198.3,4.42419675]
[1672628303169,12.39348111,1198.4,1198.3,1.42419675]
[1672628303379,12.39348111,1198.4,1198.3,4.42419675]
[1672628303918,12.39348111,1198.4,1198.3,1.42419675]
[1672628305381,6.17244039,1198.4,1198.3,1.42419675]
[1672628305620,12.39348111,1198.4,1198.3,1.42419675]
[1672628305759,6.17244039,1198.4,1198.3,1.42419675]
[1672628306377,12.39348111,1198.4,1198.3,1.42419675]
[1672628308742,7.39348111,1198.4,1198.3,1.42419675]
[1672628309580,1.17244039,1198.4,1198.3,1.42419675]
[1672628309741,6.16880389,1198.4,1198.3,1.42419675]
[1672628309952,6.17244039,1198.4,1198.3,1.42419675]
[1672628310635,12.39348111,1198.4,1198.3,1.42419675]
[1672628312364,11.35444828,1198.4,1198.3,1.42419675]
[1672628312630,10.50241399,1198.4,1198.3,1.42419675]
[1672628313510,5.3204061,1198.4,1198.3,1.42419675]
[1672628313891,10.50241399,1198.4,1198.3,1.42419675]
[1672628314110,5.3204061,1198.4,1198.3,1.42419675]
[1672628315306,10.50241399,1198.4,1198.3,1.42419675]
[1672628315478,5.3204061,1198.4,1198.3,1.84763122]
[1672628316132,9.70587046,1198.4,1198.3,1.84763122]
[1672628317299,5.3204061,1198.4,1198.3,1.84763122]
[1672628317937,9.70498562,1198.4,1198.3,1.84763122]
[1672628318151,5.3204061,1198.4,1198.3,1.84763122]
[1672628318823,9.70493982,1198.4,1198.3,1.84763122]
[1672628319469,5.3204061,1198.4,1198.3,1.84763122]
[1672628319719,4.70434127,1198.4,1198.3,1.84763122]
[1672628319929,4.70070477,1198.4,1198.3,1.84763122]
[1672628320399,0.3167696,1198.4,1198.3,1.84763122]
[1672628320615,5.3167696,1198.4,1198.3,1.84763122]
[1672628320786,5.3204061,1198.4,1198.3,1.84763122]
[1672628322096,9.70409647,1198.4,1198.3,1.84763122]
[1672628322415,10.50241399,1198.4,1198.3,1.84763122]
[1672628324283,10.50241399,1198.4,1198.3,1.84519404]
[1672628326370,12.18095946,1198.4,1198.3,1.84519404]
[1672628328919,12.17795056,1198.4,1198.3,1.59281022]
[1672628329457,13.21698339,1198.4,1198.3,1.59281022]
[1672628329858,13.21698339,1198.4,1198.3,1.84519404]
[1672628331063,6.99594267,1198.4,1198.3,1.84519404]
[1672628331896,12.17405312,1198.4,1198.3,1.84519404]
[1672628337695,7.17405312,1198.4,1198.3,1.84519404]
[1672628338639,12.17405312,1198.4,1198.3,1.84519404]
[1672628344532,7.17405312,1198.4,1198.3,1.84519404]
[1672628345053,7.12405312,1198.4,1198.3,1.84519404]
[1672628345415,12.12405312,1198.4,1198.3,1.79519404]
[1672628348633,6.94594267,1198.4,1198.3,1.79519404]
[1672628350166,13.16698339,1198.4,1198.3,1.79519404]
[1672628351436,8.16698339,1198.4,1198.3,1.79519404]
[1672628351743,6.48843792,1198.4,1198.3,1.79519404]
[1672628352360,11.48843792,1198.4,1198.3,1.79519404]
[1672628363727,6.48843792,1198.4,1198.3,1.79519404]
[1672628364813,11.48843792,1198.4,1198.3,1.79519404]
[1672628368691,11.48843792,1198.4,1198.3,1.79137598]
[1672628368901,12.64348171,1198.4,1198.3,2.07058133]
[1672628370924,7.64348171,1198.4,1198.3,2.07058133]
[1672628371805,12.64348171,1198.4,1198.3,2.07058133]
[1672628377905,7.64348171,1198.4,1198.3,2.07058133]
[1672628378812,12.64348171,1198.4,1198.3,2.07058133]
[1672628384803,7.64348171,1198.4,1198.3,2.07058133]
[1672628385806,12.64348171,1198.4,1198.3,2.07058133]
[1672628390815,12.64348171,1198.4,1198.3,2.06820169]
[1672628391750,7.64348171,1198.4,1198.3,2.06820169]
[1672628392960,12.64348171,1198.4,1198.3,2.06820169]
[1672628398937,7.64348171,1198.4,1198.3,2.06820169]
[1672628399935,12.64348171,1198.4,1198.3,2.06820169]
[1672628401107,8.51944099,1198.4,1198.3,1.3923834]
[1672628401302,9.14644099,1198.4,1198.3,1.3923834]
[1672628404209,15.3636101,1198.4,1198.3,1.3923834]
[1672628404375,11.48456631,1198.4,1198.3,1.64476722]
[1672628407969,11.48456631,1198.4,1198.3,2.06520636]
[1672628411756,11.48456631,1198.4,1198.3,2.06191869]
[1672628411967,13.08422912,1198.4,1198.3,2.06191869]
[1672628414923,8.08422912,1198.4,1198.3,2.06191869]
[1672628416075,13.08422912,1198.4,1198.3,2.06191869]
[1672628420677,13.08172451,1198.4,1198.3,2.06191869]
[1672628420887,13.08372451,1198.4,1198.3,2.06191869]
[1672628421123,13.08172451,1198.4,1198.3,2.06191869]
[1672628422070,8.08172451,1198.4,1198.3,2.06191869]
[1672628422958,13.08172451,1198.4,1198.3,2.06191869]
[1672628428110,13.08172451,1198.4,1198.3,1.80953487]
[1672628428951,8.08172451,1198.4,1198.3,1.80953487]
[1672628430141,13.08172451,1198.4,1198.3,1.80953487]
[1672628432796,11.4820617,1198.4,1198.3,1.80953487]
[1672628440564,6.4820617,1198.4,1198.3,1.80953487]
[1672628440937,6.4820617,1198.4,1198.3,4.80953487]
[1672628441512,11.4820617,1198.4,1198.3,4.80953487]
[1672628442332,11.4820617,1198.4,1198.3,4.8057638]
[1672628443168,10.44507259,1198.4,1198.3,4.8057638]
[1672628449792,5.26489259,1198.4,1198.3,4.8057638]
[1672628450022,5.26489259,1198.4,1198.3,1.8057638]
[1672628452014,11.4820617,1198.4,1198.3,1.8057638]
[1672628455262,5.26489259,1198.4,1198.3,1.8057638]
[1672628456144,10.44301261,1198.4,1198.3,1.8057638]
[1672628465290,5.44301261,1198.4,1198.3,1.80194733]
[1672628466243,10.44301261,1198.4,1198.3,1.80194733]
[1672628472132,5.44301261,1198.4,1198.3,1.80194733]
[1672628473280,10.44301261,1198.4,1198.3,1.80194733]
[1672628476788,10.44301261,1198.4,1198.3,6.35788811]
[1672628477003,10.44301261,1198.4,1198.3,9.42388811]
[1672628479297,5.44301261,1198.4,1198.3,9.42388811]
[1672628480051,10.44301261,1198.4,1198.3,9.42388811]
[1672628486195,5.44301261,1198.4,1198.3,9.42388811]
[1672628486930,5.44301261,1198.4,1198.3,9.42158735]
[1672628487102,10.44301261,1198.4,1198.3,9.42158735]
[1672628489466,10.44301261,1198.4,1198.3,9.67397117]
[1672628493121,5.44301261,1198.4,1198.3,9.67397117]
[1672628494087,5.4392552,1198.4,1198.3,9.67397117]
[1672628494306,10.4392552,1198.4,1198.3,9.67397117]
[1672628494658,10.4412552,1198.4,1198.3,9.67197117]
[1672628494924,10.4392552,1198.4,1198.3,9.67397117]
[1672628500293,5.4392552,1198.4,1198.3,9.67397117]
[1672628501502,10.4392552,1198.4,1198.3,9.67397117]
[1672628505541,10.4392552,1198.4,1198.3,5.11803039]
[1672628507330,10.4392552,1198.4,1198.3,5.92983343]
[1672628507540,4.64814985,1198.4,1198.3,5.92983343]
[1672628507855,9.64451335,1198.4,1198.3,8.01583343]
[1672628508066,9.64814985,1198.4,1198.3,8.01583343]
[1672628516948,4.64814985,1198.4,1198.3,8.01583343]
[1672628517159,9.64451335,1198.4,1198.3,8.01583343]
[1672628517391,9.64814985,1198.4,1198.3,8.01215694]
[1672628520204,9.64814985,1198.4,1198.3,7.2003539]
[1672628520438,9.64814985,1198.4,1198.3,5.1143539]
[1672628520439,10.4392552,1198.4,1198.3,5.1143539]
[1672628521506,9.64447776,1198.4,1198.3,5.1143539]
[1672628521716,10.4392552,1198.4,1198.3,5.1143539]
[1672628521951,10.4392552,1198.4,1198.3,15.1843768]
[1672628522258,9.01795301,1198.4,1198.3,21.48638793]
[1672628522467,8.39017198,1198.4,1198.3,21.48638793]
[1672628523037,3.39017198,1198.4,1198.3,21.48638793]
[1672628523251,3.38653548,1198.4,1198.3,21.48638793]
[1672628524583,3.38653548,1198.4,1198.3,19.40438793]
[1672628524894,3.38653548,1198.4,1198.3,15.58122617]
[1672628525417,0.25749868,1198.4,1198.3,15.58122617]
[1672628525780,4.01431651,1198.4,1198.3,15.58122617]
[1672628530937,0.25749868,1198.4,1198.3,15.58122617]
[1672628531681,4.01431651,1198.4,1198.3,15.58122617]
[1672628531879,0.25749868,1198.4,1198.3,15.58122617]
[1672628532709,5.88618182,1198.4,1198.3,19.40438793]
[1672628532922,3.38821584,1198.4,1198.3,15.58122617]
[1672628533150,3.38457934,1198.4,1198.3,15.58122617]
[1672628533606,3.38457934,1198.4,1198.3,19.40438793]
[1672628533607,5.8861644,1198.4,1198.3,19.40438793]
[1672628533819,5.8898009,1198.4,1198.3,19.40438793]
[1672628533991,3.38821584,1198.4,1198.3,19.40438793]
[1672628534186,5.88574206,1198.4,1198.3,19.40438793]
[1672628534403,5.88937856,1198.4,1198.3,19.40438793]
[1672628534628,5.88937856,1198.4,1198.3,21.49038793]
[1672628535930,5.88938461,1198.4,1198.3,21.49038793]
[1672628536283,5.88916726,1198.4,1198.3,21.49038793]
[1672628536646,5.88916726,1198.4,1198.3,17.66722617]
[1672628537291,5.88916726,1198.4,1198.3,21.49038793]
[1672628537961,3.38821584,1198.4,1198.3,17.66722617]
[1672628538174,5.88556692,1198.4,1198.3,17.66722617]
[1672628538330,5.88920342,1198.4,1198.3,17.66722617]
[1672628538534,3.38821584,1198.4,1198.3,21.49038793]
[1672628538799,5.88544097,1198.4,1198.3,21.49038793]
[1672628539012,5.88907747,1198.4,1198.3,21.49038793]
[1672628539443,5.88907747,1198.4,1198.3,17.66722617]
[1672628539604,5.88907747,1198.4,1198.3,21.49038793]
[1672628540695,2.76199681,1198.4,1198.3,21.49038793]
[1672628540906,0.25749868,1198.4,1198.3,21.49038793]
[1672628542388,2.75836031,1198.4,1198.3,21.48672048]
[1672628543027,0.25749868,1198.4,1198.3,24.39872048]
[1672628543174,0.25749868,1198.4,1198.3,26.48272048]
[1672628543818,1e-08,1198.4,1198.3,26.48272048]
[1672628544265,1e-08,1198.4,1198.3,34.82787048]
[1672628549477,1e-08,1198.4,1198.3,38.68055151]
[1672628549687,1e-08,1198.4,1198.3,30.33540151]
[1672628551003,1e-08,1198.4,1198.3,24.42823975]
[1672628551213,1e-08,1198.4,1198.3,23.31063117]
[1672628552059,2.5004416,1198.4,1198.3,23.31063117]
[1672628552210,2.5004416,1198.4,1198.3,22.4664663]
[1672628552211,3.125552,1198.4,1198.3,22.4664663]
[1672628552420,5.62446916,1198.4,1198.3,22.4664663]
[1672628552802,2.50255367,1198.4,1198.3,22.4664663]
[1672628552944,2.49891717,1198.4,1198.3,22.4664663]
[1672628553836,2.49891717,1198.4,1198.3,26.28962806]
[1672628554318,2.49891717,1198.4,1198.3,22.4664663]
[1672628556053,2.49891717,1198.4,1198.3,30.8116163]
[1672628556512,2.49891717,1198.4,1198.3,26.95893527]
[1672628561007,2.49891717,1198.4,1198.3,35.30408527]
[1672628562407,1e-08,1198.4,1198.3,35.30408527]
[1672628563460,2.49891717,1198.4,1198.3,35.30408527]
[1672628563683,1e-08,1198.4,1198.3,35.30408527]
[1672628564054,2.49891717,1198.4,1198.3,35.30408527]
[1672628564269,1e-08,1198.4,1198.3,35.30408527]
[1672628564476,1e-08,1198.4,1198.3,37.40208527]
[1672628564703,2.49891717,1198.4,1198.3,37.40208527]
[1672628565154,2.49891717,1198.4,1198.3,37.39916233]
[1672628566295,2.49891717,1198.4,1198.3,35.31316233]
[1672628567950,2.49891717,1198.4,1198.3,35.06077851]
[1672628568157,2.49891717,1198.4,1198.3,35.31316233]
[1672628569363,1e-08,1198.4,1198.3,35.31316233]
[1672628574374,1e-08,1198.4,1198.3,30.30316233]
[1672628577366,1e-08,1198.4,1198.3,21.95801233]
[1672628579300,2.49891717,1198.4,1198.3,21.95801233]
[1672628579766,2.49891717,1198.4,1198.3,13.61286233]